[Event "Late-Titled-Tuesday-Blitz-May-07-2024"]
[Site "Chess.com"]
[Date "2024.05.07"]
[Round "1"]
[White "GMMikhailKazakov"]
[Black "DanielDardha2005"]
[Result "0-1"]
[WhiteElo "2517"]
[BlackElo "2884"]
[TimeControl "180+1"]
[EndTime "14:07:40 PDT"]
[Termination "DanielDardha2005 won by checkmate"]

1. d4 {[%clk 0:02:58.9]} 1... Nf6 {[%clk 0:02:48.2]} 2. c4 {[%clk 0:02:58.3]}
2... d6 {[%clk 0:02:47.7]} 3. Nc3 {[%clk 0:02:57.9]} 3... Bf5 {[%clk 0:02:48.4]}
4. g3 {[%clk 0:02:55.9]} 4... e5 {[%clk 0:02:36.9]} 5. Nf3 {[%clk 0:02:50.9]}
5... Nbd7 {[%clk 0:02:31.7]} 6. Bg2 {[%clk 0:02:49.6]} 6... c6 {[%clk
0:02:31.1]} 7. O-O {[%clk 0:02:46.2]} 7... h6 {[%clk 0:02:28.6]} 8. b3 {[%clk
0:02:41.9]} 8... Be7 {[%clk 0:02:25.6]} 9. Bb2 {[%clk 0:02:41]} 9... O-O {[%clk
0:02:24.6]} 10. Re1 {[%clk 0:02:40.4]} 10... e4 {[%clk 0:02:22.8]} 11. Nd2
{[%clk 0:02:34.5]} 11... d5 {[%clk 0:02:22.1]} 12. Nf1 {[%clk 0:02:32.4]} 12...
Re8 {[%clk 0:02:18]} 13. Qc1 {[%clk 0:02:30.7]} 13... a6 {[%clk 0:02:14.5]} 14.
Ne3 {[%clk 0:02:26.6]} 14... Be6 {[%clk 0:02:13.6]} 15. Ba3 {[%clk 0:02:26.5]}
15... b5 {[%clk 0:02:08.4]} 16. Bxe7 {[%clk 0:02:19.5]} 16... Qxe7 {[%clk
0:02:09.3]} 17. Qd2 {[%clk 0:02:04.8]} 17... Nb6 {[%clk 0:01:54.4]} 18. cxb5
{[%clk 0:01:59]} 18... axb5 {[%clk 0:01:51.7]} 19. a4 {[%clk 0:01:54]} 19...
bxa4 {[%clk 0:01:26.4]} 20. bxa4 {[%clk 0:01:54.9]} 20... Nh7 {[%clk 0:01:20.9]}
21. a5 {[%clk 0:01:52.4]} 21... Nc8 {[%clk 0:01:18.8]} 22. Na4 {[%clk
0:01:46.2]} 22... Ng5 {[%clk 0:01:16.9]} 23. Nc5 {[%clk 0:01:41.9]} 23... Nh3+
{[%clk 0:01:14.5]} 24. Bxh3 {[%clk 0:01:35.6]} 24... Bxh3 {[%clk 0:01:15.4]} 25.
a6 {[%clk 0:01:30.6]} 25... Nd6 {[%clk 0:01:12.9]} 26. Rab1 {[%clk 0:01:18.6]}
26... Qf6 {[%clk 0:00:53.4]} 27. Rb6 {[%clk 0:01:08.6]} 27... Nc8 {[%clk
0:00:40.3]} 28. Rb7 {[%clk 0:00:49.7]} 28... Nd6 {[%clk 0:00:35.9]} 29. Rb6
{[%clk 0:00:49.2]} 29... Nc8 {[%clk 0:00:35.7]} 30. Rb7 {[%clk 0:00:49.3]} 30...
Ne7 {[%clk 0:00:29.5]} 31. Reb1 {[%clk 0:00:44.3]} 31... h5 {[%clk 0:00:21.3]}
32. a7 {[%clk 0:00:42.4]} 32... Nc8 {[%clk 0:00:20.8]} 33. Ra1 {[%clk
0:00:24.8]} 33... Re7 {[%clk 0:00:14]} 34. Qb4 {[%clk 0:00:19.1]} 34... Rxb7
{[%clk 0:00:11.6]} 35. Qxb7 {[%clk 0:00:17.3]} 35... Rxa7 {[%clk 0:00:03.8]} 36.
Rxa7 {[%clk 0:00:15.8]} 36... Nxa7 {[%clk 0:00:02.8]} 37. Qxa7 {[%clk
0:00:16.2]} 37... Qxd4 {[%clk 0:00:03.3]} 38. Qa3 {[%clk 0:00:14]} 38... Kh7
{[%clk 0:00:02.6]} 39. Nb3 {[%clk 0:00:11.2]} 39... Qc3 {[%clk 0:00:02.7]} 40.
Nd2 {[%clk 0:00:06.8]} 40... Qxa3 {[%clk 0:00:02.7]} 41. f3 {[%clk 0:00:06.2]}
41... Qxe3+ {[%clk 0:00:02.5]} 42. Kh1 {[%clk 0:00:01.5]} 42... Qf2 {[%clk
0:00:03.4]} 43. Nf1 {[%clk 0:00:00.8]} 43... Qg2# {[%clk 0:00:04.3]} 0-1

[Event "Late-Titled-Tuesday-Blitz-May-07-2024"]
[Site "Chess.com"]
[Date "2024.05.07"]
[Round "1"]
[White "nitpicker"]
[Black "Nf3c5"]
[Result "0-1"]
[WhiteElo "2256"]
[BlackElo "2620"]
[TimeControl "180+1"]
[EndTime "14:07:41 PDT"]
[Termination "Nf3c5 won by resignation"]

1. d4 {[%clk 0:02:59.3]} 1... e6 {[%clk 0:02:56]} 2. c4 {[%clk 0:02:58.3]} 2...
f5 {[%clk 0:02:56.1]} 3. Nf3 {[%clk 0:02:56.5]} 3... Nf6 {[%clk 0:02:56.4]} 4.
Qc2 {[%clk 0:02:54.8]} 4... b6 {[%clk 0:02:51.6]} 5. a3 {[%clk 0:02:48.4]} 5...
Bb7 {[%clk 0:02:50.3]} 6. Nc3 {[%clk 0:02:49.1]} 6... Be7 {[%clk 0:02:31]} 7. h3
{[%clk 0:02:47]} 7... c5 {[%clk 0:02:28.3]} 8. Be3 {[%clk 0:02:13.4]} 8... O-O
{[%clk 0:02:13.3]} 9. O-O-O {[%clk 0:02:09.3]} 9... cxd4 {[%clk 0:02:04.2]} 10.
Nxd4 {[%clk 0:02:07.5]} 10... Qc8 {[%clk 0:02:04.8]} 11. Qb3 {[%clk 0:01:48.9]}
11... Na6 {[%clk 0:01:56.3]} 12. f3 {[%clk 0:01:39.3]} 12... Nc5 {[%clk
0:01:51.5]} 13. Qc2 {[%clk 0:01:39.2]} 13... a5 {[%clk 0:01:49.3]} 14. g4 {[%clk
0:01:32.5]} 14... a4 {[%clk 0:01:32.4]} 15. gxf5 {[%clk 0:01:24.8]} 15... Ba6
{[%clk 0:01:30.4]} 16. Ncb5 {[%clk 0:01:20.7]} 16... Bxb5 {[%clk 0:01:18.4]} 17.
Nxb5 {[%clk 0:01:08.6]} 17... Nb3+ {[%clk 0:01:14.5]} 18. Kb1 {[%clk 0:01:07.7]}
18... d5 {[%clk 0:01:11.6]} 19. Bf4 {[%clk 0:00:50.1]} 19... Nh5 {[%clk
0:00:39.2]} 20. Bh2 {[%clk 0:00:43.6]} 20... Rxf5 {[%clk 0:00:34.4]} 21. e4
{[%clk 0:00:33.3]} 21... dxe4 {[%clk 0:00:26.4]} 22. Qxe4 {[%clk 0:00:32.8]}
22... Nc5 {[%clk 0:00:19.9]} 23. Qc2 {[%clk 0:00:24.4]} 23... Qf8 {[%clk
0:00:20.5]} 24. Nc7 {[%clk 0:00:19.3]} 24... Rc8 {[%clk 0:00:20]} 25. Nxe6
{[%clk 0:00:19.3]} 25... Nxe6 {[%clk 0:00:20]} 26. Rc1 {[%clk 0:00:14.9]} 26...
Nc5 {[%clk 0:00:19.8]} 27. Be2 {[%clk 0:00:14.7]} 27... Nf4 {[%clk 0:00:18.9]}
28. Bxf4 {[%clk 0:00:14.8]} 28... Rxf4 {[%clk 0:00:19.5]} 29. Rhg1 {[%clk
0:00:15.2]} 29... Bf6 {[%clk 0:00:19.4]} 30. Rcd1 {[%clk 0:00:14.9]} 30... Nb3
{[%clk 0:00:19.5]} 31. Rd5 {[%clk 0:00:14.5]} 31... Qf7 {[%clk 0:00:16.5]} 32.
Qd3 {[%clk 0:00:13.9]} 32... Rd4 {[%clk 0:00:14.8]} 33. Rxd4 {[%clk 0:00:12.5]}
33... Nxd4 {[%clk 0:00:15.7]} 34. Bd1 {[%clk 0:00:12.1]} 34... Qxc4 {[%clk
0:00:14.5]} 35. Qe4 {[%clk 0:00:10.8]} 35... Qc1+ {[%clk 0:00:13.1]} 36. Ka2
{[%clk 0:00:10.9]} 36... Qc4+ {[%clk 0:00:13.9]} 37. Kb1 {[%clk 0:00:10.5]}
37... Nb3 {[%clk 0:00:14.4]} 38. Qxc4+ {[%clk 0:00:09.2]} 38... Rxc4 {[%clk
0:00:14.3]} 39. Bxb3 {[%clk 0:00:07.8]} 39... axb3 {[%clk 0:00:14.3]} 40. Rd1
{[%clk 0:00:07.2]} 40... Rc2 {[%clk 0:00:14.2]} 41. Rd3 {[%clk 0:00:07]} 41...
Rxb2+ {[%clk 0:00:14]} 42. Kc1 {[%clk 0:00:07.9]} 42... Rc2+ {[%clk 0:00:14.2]}
43. Kb1 {[%clk 0:00:07.7]} 43... Rb2+ {[%clk 0:00:12.6]} 44. Kc1 {[%clk
0:00:07.7]} 44... Kf7 {[%clk 0:00:13.3]} 45. Rd5 {[%clk 0:00:06]} 45... Ra2
{[%clk 0:00:12.6]} 46. Rb5 {[%clk 0:00:05.9]} 46... b2+ {[%clk 0:00:13]} 47. Kb1
{[%clk 0:00:05.4]} 47... Ra1+ {[%clk 0:00:13.9]} 48. Kc2 {[%clk 0:00:05.8]}
48... Rc1+ {[%clk 0:00:14]} 49. Kd2 {[%clk 0:00:05.7]} 49... b1=Q {[%clk
0:00:14.9]} 50. Rc5 {[%clk 0:00:05.2]} 50... Rxc5 {[%clk 0:00:13.7]} 51. h4
{[%clk 0:00:04.3]} 51... Qb3 {[%clk 0:00:13]} 0-1

[Event "Late-Titled-Tuesday-Blitz-May-07-2024"]
[Site "Chess.com"]
[Date "2024.05.07"]
[Round "1"]
[White "Chessdreamer2020"]
[Black "eljanov"]
[Result "0-1"]
[WhiteElo "2509"]
[BlackElo "2868"]
[TimeControl "180+1"]
[EndTime "14:07:44 PDT"]
[Termination "eljanov won on time"]

1. e4 {[%clk 0:03:00]} 1... c6 {[%clk 0:02:59.6]} 2. d4 {[%clk 0:03:00.1]} 2...
d5 {[%clk 0:03:00.5]} 3. exd5 {[%clk 0:03:01]} 3... cxd5 {[%clk 0:03:00.7]} 4.
Bd3 {[%clk 0:03:01.9]} 4... Nf6 {[%clk 0:03:01.1]} 5. h3 {[%clk 0:03:01.8]} 5...
g6 {[%clk 0:02:56.8]} 6. c3 {[%clk 0:03:01.9]} 6... Bf5 {[%clk 0:02:57]} 7. Be2
{[%clk 0:03:02.1]} 7... Nc6 {[%clk 0:02:55]} 8. Nf3 {[%clk 0:03:02.1]} 8... e6
{[%clk 0:02:55.1]} 9. O-O {[%clk 0:03:02.4]} 9... Bd6 {[%clk 0:02:51.2]} 10. Re1
{[%clk 0:03:01.5]} 10... Qc7 {[%clk 0:02:48.5]} 11. Bh6 {[%clk 0:03:00.8]} 11...
Ne4 {[%clk 0:02:45.5]} 12. Nbd2 {[%clk 0:02:58.2]} 12... O-O-O {[%clk 0:02:45]}
13. Bb5 {[%clk 0:02:36.3]} 13... Rhg8 {[%clk 0:02:37.8]} 14. Ng5 {[%clk
0:02:29.2]} 14... Bf4 {[%clk 0:02:16.1]} 15. Ndxe4 {[%clk 0:02:28.6]} 15... Bxe4
{[%clk 0:02:11.8]} 16. Bxc6 {[%clk 0:02:02.1]} 16... bxc6 {[%clk 0:02:07.7]} 17.
Nxe4 {[%clk 0:02:00.8]} 17... Bxh6 {[%clk 0:02:07.7]} 18. Nc5 {[%clk 0:01:56.2]}
18... Bf8 {[%clk 0:02:07.9]} 19. b4 {[%clk 0:01:55.4]} 19... Bxc5 {[%clk
0:02:07.7]} 20. bxc5 {[%clk 0:01:55.5]} 20... Kd7 {[%clk 0:02:08.1]} 21. Qa4
{[%clk 0:01:53.7]} 21... Rb8 {[%clk 0:02:07.7]} 22. Rab1 {[%clk 0:01:54]} 22...
Rb7 {[%clk 0:02:04.6]} 23. Rb4 {[%clk 0:01:51.2]} 23... Rgb8 {[%clk 0:01:59.5]}
24. Reb1 {[%clk 0:01:50.9]} 24... Rxb4 {[%clk 0:01:50.5]} 25. Rxb4 {[%clk
0:01:48.1]} 25... Rxb4 {[%clk 0:01:45.9]} 26. cxb4 {[%clk 0:01:49]} 26... Qb7
{[%clk 0:01:44.3]} 27. Qa5 {[%clk 0:01:45.7]} 27... f6 {[%clk 0:01:39.1]} 28. a4
{[%clk 0:01:41.7]} 28... e5 {[%clk 0:01:29.6]} 29. dxe5 {[%clk 0:01:40.3]} 29...
fxe5 {[%clk 0:01:29.7]} 30. b5 {[%clk 0:01:39.7]} 30... d4 {[%clk 0:01:27.2]}
31. b6 {[%clk 0:01:38.3]} 31... axb6 {[%clk 0:01:26.9]} 32. cxb6 {[%clk
0:01:33.1]} 32... d3 {[%clk 0:01:11.6]} 33. Qb4 {[%clk 0:01:29.9]} 33... c5
{[%clk 0:00:48]} 34. Qb5+ {[%clk 0:01:29.6]} 34... Ke6 {[%clk 0:00:43.8]} 35. a5
{[%clk 0:01:06.4]} 35... d2 {[%clk 0:00:43.3]} 36. Qb1 {[%clk 0:00:44.7]} 36...
c4 {[%clk 0:00:40.4]} 37. Kf1 {[%clk 0:00:43.3]} 37... c3 {[%clk 0:00:37.2]} 38.
Qb3+ {[%clk 0:00:41.3]} 38... Kf6 {[%clk 0:00:35.1]} 39. f3 {[%clk 0:00:18.9]}
39... Qa6+ {[%clk 0:00:29.8]} 40. Kf2 {[%clk 0:00:19.1]} 40... Qb7 {[%clk
0:00:22.2]} 41. g4 {[%clk 0:00:11.5]} 41... h5 {[%clk 0:00:18.3]} 42. gxh5
{[%clk 0:00:08.2]} 42... gxh5 {[%clk 0:00:18.5]} 43. h4 {[%clk 0:00:06.9]} 43...
Qd7 {[%clk 0:00:18]} 44. Ke2 {[%clk 0:00:03.1]} 44... Qg7 {[%clk 0:00:14.5]} 0-1

[Event "Late-Titled-Tuesday-Blitz-May-07-2024"]
[Site "Chess.com"]
[Date "2024.05.07"]
[Round "1"]
[White "ViIIagra"]
[Black "GiorgianBarbosa"]
[Result "1-0"]
[WhiteElo "2841"]
[BlackElo "2496"]
[TimeControl "180+1"]
[EndTime "14:07:44 PDT"]
[Termination "ViIIagra won on time"]

1. g3 {[%clk 0:03:00.4]} 1... c5 {[%clk 0:03:00.9]} 2. Bg2 {[%clk 0:02:58.4]}
2... g6 {[%clk 0:02:35.1]} 3. e4 {[%clk 0:02:36.2]} 3... Bg7 {[%clk 0:02:05]} 4.
d3 {[%clk 0:02:25.9]} 4... Nc6 {[%clk 0:02:03.7]} 5. f4 {[%clk 0:02:25.8]} 5...
e6 {[%clk 0:02:01]} 6. Nf3 {[%clk 0:02:25.6]} 6... Nge7 {[%clk 0:02:00.1]} 7.
O-O {[%clk 0:02:24.8]} 7... O-O {[%clk 0:02:00.1]} 8. c3 {[%clk 0:02:24.7]} 8...
d6 {[%clk 0:01:57.6]} 9. Be3 {[%clk 0:02:24.7]} 9... Rb8 {[%clk 0:01:57.4]} 10.
a4 {[%clk 0:02:24.6]} 10... a6 {[%clk 0:01:57.5]} 11. Bf2 {[%clk 0:02:22.3]}
11... b5 {[%clk 0:01:57.4]} 12. axb5 {[%clk 0:02:23.2]} 12... axb5 {[%clk
0:01:57.7]} 13. Qc2 {[%clk 0:02:23.5]} 13... b4 {[%clk 0:01:57.4]} 14. Nbd2
{[%clk 0:02:23.7]} 14... Bb7 {[%clk 0:01:44.3]} 15. Nc4 {[%clk 0:02:23.4]} 15...
Qc7 {[%clk 0:01:38.8]} 16. Rfe1 {[%clk 0:02:05.9]} 16... Ra8 {[%clk 0:01:36.1]}
17. Rxa8 {[%clk 0:02:04.6]} 17... Rxa8 {[%clk 0:01:37]} 18. e5 {[%clk
0:02:04.9]} 18... dxe5 {[%clk 0:01:21.9]} 19. fxe5 {[%clk 0:02:05.8]} 19... bxc3
{[%clk 0:01:17.3]} 20. bxc3 {[%clk 0:02:06.7]} 20... Na5 {[%clk 0:01:11.7]} 21.
Nd6 {[%clk 0:02:06.8]} 21... Bd5 {[%clk 0:01:06.4]} 22. c4 {[%clk 0:02:02.1]}
22... Bxf3 {[%clk 0:00:59.7]} 23. Bxf3 {[%clk 0:02:00.8]} 23... Rd8 {[%clk
0:00:59.8]} 24. Nb5 {[%clk 0:01:52.4]} 24... Qc8 {[%clk 0:00:50.4]} 25. Qc3
{[%clk 0:01:18]} 25... Nac6 {[%clk 0:00:33.9]} 26. Kg2 {[%clk 0:00:58.3]} 26...
Nf5 {[%clk 0:00:26.3]} 27. Bxc5 {[%clk 0:00:34.3]} 27... Nxe5 {[%clk 0:00:15]}
28. Rxe5 {[%clk 0:00:35.2]} 28... Bxe5 {[%clk 0:00:15]} 29. Qxe5 {[%clk
0:00:35.5]} 29... Rxd3 {[%clk 0:00:15.2]} 30. Bb4 {[%clk 0:00:30.1]} 30... Qxc4
{[%clk 0:00:12.4]} 31. Qb8+ {[%clk 0:00:15.1]} 31... Kg7 {[%clk 0:00:11.9]} 32.
Nc7 {[%clk 0:00:07.5]} 32... Rxf3 {[%clk 0:00:06.3]} 33. Qf8+ {[%clk 0:00:06.6]}
33... Kf6 {[%clk 0:00:06.6]} 34. Ne8+ {[%clk 0:00:06.2]} 34... Kg5 {[%clk
0:00:04.9]} 35. Be7+ {[%clk 0:00:05.5]} 35... Nxe7 {[%clk 0:00:04.3]} 36. Qxe7+
{[%clk 0:00:06.4]} 36... Rf6 {[%clk 0:00:04.9]} 37. Qxf6+ {[%clk 0:00:06.4]}
37... Kh6 {[%clk 0:00:05.8]} 38. Qg7+ {[%clk 0:00:04.6]} 38... Kg5 {[%clk
0:00:05.5]} 39. Qf6+ {[%clk 0:00:04.9]} 39... Kh6 {[%clk 0:00:05.3]} 40. Qxf7
{[%clk 0:00:05.7]} 40... Qe2+ {[%clk 0:00:05.1]} 41. Qf2 {[%clk 0:00:05.5]}
41... Qe3 {[%clk 0:00:04.6]} 42. Qf3 {[%clk 0:00:06]} 1-0

[Event "Late-Titled-Tuesday-Blitz-May-07-2024"]
[Site "Chess.com"]
[Date "2024.05.07"]
[Round "1"]
[White "Sinquefield"]
[Black "Blackmind96"]
[Result "0-1"]
[WhiteElo "2520"]
[BlackElo "2896"]
[TimeControl "180+1"]
[EndTime "14:07:45 PDT"]
[Termination "Blackmind96 won on time"]

1. d4 {[%clk 0:03:00.9]} 1... Nf6 {[%clk 0:02:58.2]} 2. Nf3 {[%clk 0:02:59.5]}
2... e6 {[%clk 0:02:56.8]} 3. Bg5 {[%clk 0:02:59.4]} 3... h6 {[%clk 0:02:50.9]}
4. Bh4 {[%clk 0:02:58.9]} 4... b6 {[%clk 0:02:46.5]} 5. Nbd2 {[%clk 0:02:58.5]}
5... Bb7 {[%clk 0:02:46.4]} 6. e3 {[%clk 0:02:59.2]} 6... Be7 {[%clk 0:02:45.9]}
7. Bd3 {[%clk 0:02:59.5]} 7... Nh5 {[%clk 0:02:44.4]} 8. Bxe7 {[%clk 0:02:58.2]}
8... Qxe7 {[%clk 0:02:45.3]} 9. c3 {[%clk 0:02:58.9]} 9... Nf6 {[%clk
0:02:44.2]} 10. Qe2 {[%clk 0:02:59.1]} 10... d6 {[%clk 0:02:44.4]} 11. e4 {[%clk
0:02:59.5]} 11... e5 {[%clk 0:02:44.5]} 12. dxe5 {[%clk 0:02:54.1]} 12... dxe5
{[%clk 0:02:44.4]} 13. Nc4 {[%clk 0:02:53.5]} 13... Nbd7 {[%clk 0:02:43.3]} 14.
Ne3 {[%clk 0:02:49.3]} 14... g6 {[%clk 0:02:40.5]} 15. Nd2 {[%clk 0:02:34.8]}
15... Nc5 {[%clk 0:02:34.3]} 16. Bc2 {[%clk 0:02:34.7]} 16... O-O {[%clk
0:02:29.4]} 17. O-O-O {[%clk 0:02:31.9]} 17... Rad8 {[%clk 0:02:23.1]} 18. f3
{[%clk 0:02:26.9]} 18... a5 {[%clk 0:02:18.7]} 19. g4 {[%clk 0:02:26.4]} 19...
Ba6 {[%clk 0:02:13.4]} 20. Qg2 {[%clk 0:02:02.5]} 20... Ne6 {[%clk 0:02:06.8]}
21. Nf5 {[%clk 0:01:57.4]} 21... gxf5 {[%clk 0:01:56]} 22. gxf5+ {[%clk
0:01:56.9]} 22... Ng7 {[%clk 0:01:55.6]} 23. Rhg1 {[%clk 0:01:33.5]} 23... Nh5
{[%clk 0:01:54.6]} 24. Qg4 {[%clk 0:01:21.8]} 24... Qg5 {[%clk 0:01:44.7]} 25.
Qxg5 {[%clk 0:01:03.8]} 25... hxg5 {[%clk 0:01:44.7]} 26. Rxg5 {[%clk
0:01:04.7]} 26... Kh7 {[%clk 0:01:37]} 27. Rdg1 {[%clk 0:01:02.1]} 27... Rg8
{[%clk 0:01:29.3]} 28. Bb3 {[%clk 0:00:53.9]} 28... Rdf8 {[%clk 0:01:25.7]} 29.
R1g4 {[%clk 0:00:19.8]} 29... Kh6 {[%clk 0:01:15.7]} 30. h4 {[%clk 0:00:19.6]}
30... Bb5 {[%clk 0:01:10]} 31. a4 {[%clk 0:00:18.1]} 31... Be8 {[%clk
0:01:09.9]} 32. Nc4 {[%clk 0:00:18.3]} 32... f6 {[%clk 0:01:09.1]} 33. Rg6+
{[%clk 0:00:16.8]} 33... Bxg6 {[%clk 0:01:09.8]} 34. Rxg6+ {[%clk 0:00:17.3]}
34... Kh7 {[%clk 0:01:10.5]} 35. Ne3 {[%clk 0:00:17.2]} 35... Nf4 {[%clk
0:01:09.4]} 36. Bxg8+ {[%clk 0:00:15]} 36... Kxg8 {[%clk 0:01:10.3]} 37. Rg4
{[%clk 0:00:13.2]} 37... Kf7 {[%clk 0:01:09]} 38. Kc2 {[%clk 0:00:11.6]} 38...
Rd8 {[%clk 0:01:08.5]} 39. Rg1 {[%clk 0:00:10.7]} 39... Ngh5 {[%clk 0:01:07]}
40. Ng4 {[%clk 0:00:10.7]} 40... Rh8 {[%clk 0:01:01]} 41. b4 {[%clk 0:00:09.6]}
41... Ng7 {[%clk 0:00:56.6]} 42. Rh1 {[%clk 0:00:07]} 42... Ne8 {[%clk
0:00:54.1]} 43. Kb3 {[%clk 0:00:06.7]} 43... Nd6 {[%clk 0:00:54.2]} 44. h5
{[%clk 0:00:06.7]} 44... Rxh5 {[%clk 0:00:53.7]} 45. Rd1 {[%clk 0:00:03.9]}
45... Rh3 {[%clk 0:00:52.5]} 46. Rf1 {[%clk 0:00:02.4]} 46... Ke7 {[%clk
0:00:49.1]} 47. Ne3 {[%clk 0:00:02.7]} 47... Nxe4 {[%clk 0:00:46.6]} 48. Nd5+
{[%clk 0:00:01.1]} 48... Nxd5 {[%clk 0:00:46.9]} 49. fxe4 {[%clk 0:00:02]} 49...
Nxc3 {[%clk 0:00:47]} 50. bxa5 {[%clk 0:00:01.6]} 50... bxa5 {[%clk 0:00:47]}
51. Kc4 {[%clk 0:00:02.5]} 51... Nxe4 {[%clk 0:00:47.6]} 52. Kb5 {[%clk
0:00:02.2]} 52... Nd6+ {[%clk 0:00:45.1]} 53. Kxa5 {[%clk 0:00:02.5]} 53... Rh5
{[%clk 0:00:43.6]} 54. Rc1 {[%clk 0:00:01.5]} 54... Rxf5 {[%clk 0:00:44.5]} 55.
Ka6 {[%clk 0:00:01.7]} 55... Ke6 {[%clk 0:00:44]} 56. Rxc7 {[%clk 0:00:01.5]}
56... e4 {[%clk 0:00:44.9]} 57. Rc8 {[%clk 0:00:01.7]} 57... Nxc8 {[%clk
0:00:44.9]} 0-1

[Event "Late-Titled-Tuesday-Blitz-May-07-2024"]
[Site "Chess.com"]
[Date "2024.05.07"]
[Round "1"]
[White "ubdip"]
[Black "gmcorrales"]
[Result "0-1"]
[WhiteElo "2519"]
[BlackElo "2891"]
[TimeControl "180+1"]
[EndTime "14:07:46 PDT"]
[Termination "gmcorrales won on time"]

1. c4 {[%clk 0:02:12.6]} 1... e5 {[%clk 0:02:59.1]} 2. Nc3 {[%clk 0:02:12]} 2...
Nc6 {[%clk 0:02:58.2]} 3. e3 {[%clk 0:02:11.7]} 3... Nf6 {[%clk 0:02:53.5]} 4.
Nf3 {[%clk 0:02:08.3]} 4... Bb4 {[%clk 0:02:40.3]} 5. Nd5 {[%clk 0:02:01.3]}
5... a5 {[%clk 0:02:33.2]} 6. a3 {[%clk 0:01:48.9]} 6... Bd6 {[%clk 0:02:07.2]}
7. d4 {[%clk 0:01:32.7]} 7... e4 {[%clk 0:01:54.5]} 8. Nd2 {[%clk 0:01:28.9]}
8... Nxd5 {[%clk 0:01:39.1]} 9. cxd5 {[%clk 0:01:28.5]} 9... Ne7 {[%clk
0:01:39.3]} 10. Qh5 {[%clk 0:01:00.3]} 10... g6 {[%clk 0:01:22.6]} 11. Qg5
{[%clk 0:00:51.1]} 11... f5 {[%clk 0:01:08.2]} 12. Bc4 {[%clk 0:00:50.5]} 12...
b5 {[%clk 0:00:52.5]} 13. Bxb5 {[%clk 0:00:42.3]} 13... Nxd5 {[%clk 0:00:47.1]}
14. Qxd8+ {[%clk 0:00:40.4]} 14... Kxd8 {[%clk 0:00:48]} 15. Nc4 {[%clk
0:00:28.2]} 15... Be7 {[%clk 0:00:40.5]} 16. Bd2 {[%clk 0:00:25.9]} 16... a4
{[%clk 0:00:32.4]} 17. Ne5 {[%clk 0:00:19.3]} 17... Rf8 {[%clk 0:00:28]} 18. Bc4
{[%clk 0:00:18.5]} 18... c6 {[%clk 0:00:24.8]} 19. Rc1 {[%clk 0:00:14.6]} 19...
Bd6 {[%clk 0:00:18]} 20. h4 {[%clk 0:00:11.9]} 20... Ke7 {[%clk 0:00:17.6]} 21.
h5 {[%clk 0:00:11.7]} 21... g5 {[%clk 0:00:18.2]} 22. h6 {[%clk 0:00:11.1]}
22... Kf6 {[%clk 0:00:13.7]} 23. Bxd5 {[%clk 0:00:08]} 23... cxd5 {[%clk
0:00:14.6]} 24. Bc3 {[%clk 0:00:08.3]} 24... Ba6 {[%clk 0:00:14.7]} 25. f4
{[%clk 0:00:07.3]} 25... Ke6 {[%clk 0:00:14.1]} 26. fxg5 {[%clk 0:00:07.1]}
26... Be7 {[%clk 0:00:14.3]} 27. g6 {[%clk 0:00:07.3]} 27... d6 {[%clk
0:00:14.5]} 28. Nc6 {[%clk 0:00:06.9]} 28... hxg6 {[%clk 0:00:14]} 29. h7 {[%clk
0:00:07.1]} 29... Bf6 {[%clk 0:00:14.5]} 30. Nb4 {[%clk 0:00:07.2]} 30... Bc4
{[%clk 0:00:14.5]} 31. Bd2 {[%clk 0:00:05.4]} 31... Rh8 {[%clk 0:00:14.9]} 32.
Kf2 {[%clk 0:00:04.2]} 32... Ra7 {[%clk 0:00:15.4]} 33. Nc6 {[%clk 0:00:02.7]}
33... Raxh7 {[%clk 0:00:15.6]} 34. Rxh7 {[%clk 0:00:03.4]} 34... Rxh7 {[%clk
0:00:16.5]} 35. Ba5 {[%clk 0:00:02.7]} 35... Bh4+ {[%clk 0:00:16.4]} 36. g3
{[%clk 0:00:02.4]} 36... Bf6 {[%clk 0:00:17.3]} 37. Bd8 {[%clk 0:00:02.8]} 37...
Rh2+ {[%clk 0:00:16.2]} 38. Kg1 {[%clk 0:00:02.2]} 38... Rxb2 {[%clk 0:00:17.1]}
39. Bxf6 {[%clk 0:00:02.1]} 39... Kxf6 {[%clk 0:00:18]} 40. Nd8 {[%clk
0:00:02.4]} 40... Kg5 {[%clk 0:00:18]} 41. Nf7+ {[%clk 0:00:02.1]} 41... Kg4
{[%clk 0:00:18.4]} 42. Nxd6 {[%clk 0:00:02.2]} 42... Kxg3 {[%clk 0:00:19]} 43.
Kh1 {[%clk 0:00:00.5]} 43... Rh2+ {[%clk 0:00:18.8]} 44. Kg1 {[%clk 0:00:00.4]}
44... Be2 {[%clk 0:00:19.7]} 0-1